bitfinex/quotes_SOLUSD_20250624
["timestamp","ask_amount","ask_price","bid_price","bid_amount"]
[1750778497783,6.58988568,144.37,144.36,3.65837752]
[1750778498086,13.18988568,144.38,144.36,3.65837752]
[1750778500597,6.6,144.38,144.36,10.58537141]
[1750778500896,6.6,144.38,144.36,17.17525709]
[1750778501102,6.6,144.38,144.36,10.58537141]
[1750778504115,6.6,144.38,144.37,6.58988568]
[1750778504404,26.0,144.42,144.37,6.58988568]
[1750778504583,6.58,144.43,144.39,6.58988568]
[1750778504788,13.16988568,144.43,144.38,6.58988568]
[1750778505103,6.58,144.43,144.38,6.58988568]
[1750778505276,13.16988568,144.43,144.39,6.58988568]
[1750778505471,6.58,144.43,144.39,6.58988568]
[1750778505779,13.16988568,144.43,144.39,6.58988568]
[1750778506188,13.16988568,144.43,144.4,6.92520775]
[1750778506896,6.58988568,144.42,144.39,6.92558367]
[1750778507209,6.58988568,144.42,144.38,6.92603833]
[1750778507881,13.16988568,144.43,144.38,13.51592401]
[1750778508390,6.58,144.43,144.39,6.58988568]
[1750778509399,13.16988568,144.43,144.38,13.51592401]
[1750778510982,6.58,144.43,144.4,6.58988568]
[1750778511200,6.58,144.43,144.41,6.58988568]
[1750778511579,6.58,144.43,144.4,6.58988568]
[1750778512275,6.58,144.43,144.4,6.92520775]
[1750778512704,13.16988568,144.43,144.4,6.92520775]
[1750778512893,6.58988568,144.42,144.37,0.14216157]
[1750778513100,6.58988568,144.42,144.38,6.58988568]
[1750778513415,13.16988568,144.43,144.39,6.58988568]
[1750778513634,13.16988568,144.43,144.38,6.58988568]
[1750778514188,6.58988568,144.42,144.37,13.51653249]
[1750778515021,6.58988568,144.42,144.38,6.58988568]
[1750778515221,13.50416061,144.43,144.37,6.92664681]
[1750778515432,6.58988568,144.4,144.37,6.92664681]
[1750778515605,13.50416061,144.43,144.37,6.92664681]
[1750778515606,6.58988568,144.41,144.37,6.92664681]
[1750778516427,6.58988568,144.42,144.37,13.51653249]
[1750778516625,6.58988568,144.42,144.38,6.58988568]
[1750778517124,6.58988568,144.42,144.37,30.83314951]
[1750778520610,13.16988568,144.43,144.38,6.58988568]
[1750778521440,6.58,144.43,144.41,6.58988568]
[1750778522313,6.58,144.43,144.42,6.92424871]
[1750778523008,6.58,144.43,144.42,13.51413439]
[1750778523407,6.58,144.43,144.42,6.92424871]
[1750778523608,6.58,144.43,144.42,13.51413439]
[1750778524206,13.16988568,144.43,144.39,6.92568737]
[1750778524627,13.16988568,144.43,144.39,13.51557305]
[1750778525004,6.58,144.43,144.39,13.51557305]
[1750778525228,13.16988568,144.43,144.39,6.92568737]
[1750778526227,6.58,144.43,144.39,13.51557305]
[1750778526633,13.16988568,144.43,144.39,6.92568737]
[1750778527330,13.16988568,144.43,144.39,13.51557305]
[1750778528208,13.16988568,144.43,144.39,6.92568737]
[1750778528404,6.58,144.43,144.39,13.51557305]
[1750778528617,6.58,144.43,144.4,6.58988568]
[1750778529407,6.58,144.43,144.41,6.58988568]
[1750778529636,6.58,144.43,144.42,6.58988568]
[1750778530712,6.58,144.43,144.42,13.51413439]
[1750778531626,6.58,144.43,144.42,6.92424871]
[1750778532006,6.58,144.43,144.42,13.51413439]
[1750778533035,6.58,144.43,144.42,13.65629596]
[1750778533342,159.72988568,144.48,144.42,30.96691775]
[1750778533540,13.12988568,144.48,144.43,6.58988568]
[1750778534020,6.58988568,144.47,144.43,6.58988568]
[1750778535135,6.58988568,144.47,144.44,6.92328994]
[1750778535832,13.12988568,144.48,144.44,6.92328994]
[1750778537145,13.12988568,144.48,144.44,13.51317562]
[1750778537852,6.54,144.48,144.46,6.58988568]
[1750778539146,6.54,144.48,144.47,6.92185228]
[1750778540149,6.54,144.48,144.46,6.92211091]
[1750778540846,6.54,144.48,144.46,13.51199659]
[1750778541021,6.54,144.48,144.46,6.92211091]
[1750778541536,155.12143527,144.52,144.48,0.14216157]
[1750778541537,6.54,144.52,144.48,0.14216157]
[1750778541740,6.54,144.52,144.49,6.58988568]
[1750778542124,6.54,144.52,144.48,6.73204725]
[1750778543861,6.54,144.52,144.49,6.92089417]
[1750778544066,6.54,144.52,144.49,13.51077985]
[1750778544577,6.54,144.52,144.5,6.58988568]
[1750778544723,6.58988568,144.56,144.51,6.58988568]
[1750778544926,13.50747451,144.56,144.5,0.14216157]
[1750778545150,6.58988568,144.53,144.49,13.51077985]
[1750778545350,6.58988568,144.54,144.49,13.51077985]
[1750778546252,6.58988568,144.53,144.49,13.51077985]
[1750778546439,6.58988568,144.51,144.47,6.58988568]
[1750778546638,6.58988568,144.51,144.46,8.34534725]
[1750778546836,6.58988568,144.51,144.47,6.58988568]
[1750778547348,6.58988568,144.51,144.46,8.20318568]
[1750778547650,39.46021059,144.51,144.44,18.64964886]
[1750778547946,6.58988568,144.47,144.43,32.16330384]
[1750778548155,32.58988568,144.48,144.44,6.58988568]
[1750778548728,32.58988568,144.48,144.44,0.14216157]
[1750778549361,6.54,144.51,144.45,6.92281066]
[1750778549538,6.58988568,144.48,144.45,6.92281066]
[1750778551057,6.54,144.51,144.45,6.92281066]
[1750778551259,6.58988568,144.5,144.46,0.14216157]
[1750778551558,13.12988568,144.51,144.47,6.58988568]
[1750778551734,13.12988568,144.51,144.48,0.14216157]
[1750778552245,6.54,144.51,144.48,0.14216157]
[1750778552932,6.54,144.51,144.49,6.92089417]
[1750778554248,26.0,144.48,144.42,1.5313]
[1750778554452,6.58988568,144.44,144.4,6.92520775]
[1750778554654,6.58988568,144.44,144.4,13.51509343]
[1750778554859,6.58988568,144.45,144.42,0.14216157]
[1750778555161,6.58988568,144.45,144.41,18.64964886]
[1750778555466,6.58988568,144.45,144.41,25.23953454]
[1750778555768,6.58988568,144.45,144.43,6.9237693]
[1750778556674,6.58988568,144.44,144.39,1.6362]
[1750778556860,6.58988568,144.41,144.37,6.92657847]
[1750778557034,12.11088358,144.45,144.37,6.92657847]
[1750778557238,6.58988568,144.4,144.37,6.92657847]
[1750778557445,6.58988568,144.41,144.37,6.92657847]
[1750778557666,6.58988568,144.4,144.36,3.65837752]
[1750778557962,6.58988568,144.38,144.36,3.65837752]
[1750778558138,6.58988568,144.39,144.36,3.65837752]
[1750778559160,6.58988568,144.39,144.36,10.58545387]
[1750778559334,6.58988568,144.4,144.36,10.58545387]
[1750778559949,146.6,144.48,144.4,18.64964886]
[1750778560165,6.58988568,144.45,144.4,6.58988568]
[1750778560339,6.58988568,144.45,144.4,10.98047268]
[1750778560340,10.98047268,144.45,144.4,10.98047268]
[1750778560535,36.98047268,144.45,144.4,10.98047268]
[1750778561154,10.98047268,144.44,144.41,6.9247282]
[1750778561756,36.98047268,144.45,144.41,6.9247282]
[1750778561972,36.98047268,144.45,144.41,17.90520088]
[1750778562176,36.98047268,144.45,144.41,35.21702139]
[1750778562372,26.0,144.45,144.42,10.98047268]
[1750778562539,26.0,144.45,144.41,24.23654871]
[1750778562540,10.98047268,144.47,144.43,10.98047268]
[1750778562865,26.0,144.47,144.43,10.98047268]
[1750778563163,26.0,144.45,144.44,18.04592419]
[1750778564442,6.54,144.48,144.44,18.04592419]
[1750778564674,6.54,144.48,144.45,10.98047268]
[1750778565168,6.54,144.48,144.46,17.90280412]
[1750778565943,6.54,144.48,144.47,10.98047268]
[1750778566142,6.54,144.48,144.47,11.12263425]
[1750778566557,17.50047268,144.53,144.47,11.12263425]
[1750778566874,17.50047268,144.53,144.49,10.98047268]
[1750778566875,6.52,144.53,144.49,10.98047268]
[1750778567248,6.52,144.53,144.5,17.9008879]
[1750778567864,6.52,144.53,144.51,10.98047268]
[1750778568264,6.52,144.53,144.5,17.9008879]
[1750778568581,6.52,144.53,144.5,6.92041522]
[1750778568959,6.52,144.53,144.5,17.9008879]
[1750778570981,6.52,144.53,144.5,6.92041522]
[1750778572176,6.52,144.53,144.5,17.9008879]
[1750778572373,6.52,144.53,144.51,10.98047268]
[1750778572672,6.52,144.53,144.52,10.98047268]
[1750778572974,6.52,144.53,144.51,11.12263425]
[1750778573753,6.52,144.53,144.49,18.64964886]
[1750778573754,6.52,144.53,144.49,0.14216157]
[1750778573954,6.52,144.53,144.5,10.98047268]
[1750778574279,6.52,144.53,144.51,17.8999459]
[1750778574478,6.52,144.53,144.51,6.91947322]
[1750778574867,6.52,144.53,144.5,17.90075806]
[1750778575779,17.50047268,144.53,144.49,6.92067796]
[1750778575955,43.50047268,144.53,144.49,6.92067796]
[1750778576155,32.52,144.53,144.49,17.90115064]
[1750778576363,32.52,144.53,144.48,7.06353477]
[1750778576562,32.52,144.53,144.49,10.98047268]
[1750778576989,43.50047268,144.53,144.49,10.98047268]
[1750778577653,43.50047268,144.53,144.49,17.90116425]
[1750778578081,10.98047268,144.52,144.47,11.12263425]
[1750778578661,10.98047268,144.51,144.47,11.12263425]
[1750778578862,10.98047268,144.52,144.47,11.12263425]
[1750778579072,10.98047268,144.52,144.47,18.04426335]
[1750778579678,13.43908634,144.53,144.49,6.92089417]
[1750778579868,24.41955902,144.53,144.49,6.92089417]
[1750778580266,6.52,144.53,144.49,17.90136685]
[1750778580476,17.50047268,144.53,144.49,17.90136685]
[1750778581182,17.50047268,144.53,144.5,10.98047268]
[1750778581183,6.52,144.53,144.5,10.98047268]
[1750778581571,6.52,144.53,144.51,10.98047268]
[1750778581772,6.52,144.53,144.52,17.89993019]
[1750778582362,6.52,144.53,144.52,13.49792512]
[1750778582582,6.52,144.53,144.52,6.91945751]
[1750778582977,6.52,144.53,144.52,13.49792512]
[1750778583172,6.52,144.53,144.52,13.64008669]
[1750778583687,32.52,144.53,144.52,13.64008669]
[1750778584194,6.52,144.58,144.53,0.14216157]
[1750778584364,32.52,144.58,144.54,6.57846761]
[1750778584564,6.52,144.58,144.54,6.57846761]
[1750778584778,26.0,144.56,144.54,6.57846761]
[1750778585065,26.0,144.56,144.53,6.72062918]
[1750778585486,26.0,144.57,144.53,6.72062918]
[1750778585665,6.52,144.58,144.54,6.57846761]
[1750778585862,26.0,144.56,144.55,6.91802144]
[1750778586178,6.52,144.63,144.56,18.79181043]
[1750778586487,26.0,144.6,144.58,10.95437469]
[1750778586859,17.47437469,144.63,144.59,10.95437469]
[1750778587064,17.47437469,144.63,144.59,17.87041272]
[1750778587475,24.38862563,144.63,144.59,10.95437469]
[1750778587679,17.47437469,144.63,144.58,17.87081427]
[1750778587876,17.47437469,144.63,144.59,10.95437469]
[1750778588190,6.52,144.63,144.59,10.95437469]
[1750778588566,6.52,144.63,144.59,11.09653626]
[1750778589499,6.52,144.63,144.59,18.01235589]
[1750778590384,24.38867645,144.63,144.59,0.14216157]
[1750778590592,17.47437469,144.63,144.59,18.01261631]
[1750778590912,17.47437469,144.63,144.58,10.95437469]
[1750778591496,17.47437469,144.63,144.57,7.05922596]
[1750778591497,17.47437469,144.63,144.59,17.8704823]
[1750778591799,6.52,144.63,144.61,10.95437469]
[1750778592611,26.0,144.64,144.62,10.95437469]
[1750778592778,17.47437469,144.68,144.63,11.09653626]
[1750778593100,26.0,144.65,144.63,11.09653626]
[1750778593598,26.0,144.65,144.64,6.91371681]
[1750778593794,32.52,144.68,144.64,17.8680915]
[1750778593990,6.52,144.68,144.64,17.8680915]
[1750778594177,26.0,144.66,144.64,17.8680915]
[1750778595280,26.0,144.67,144.65,10.95437469]
[1750778595482,26.0,144.67,144.66,18.79181043]
[1750778595980,17.47437469,144.68,144.64,10.95437469]
[1750778596186,6.52,144.68,144.65,29.74618512]
[1750778596590,59.4924,144.73,144.67,11.09653626]
[1750778596787,10.95437469,144.71,144.67,10.95437469]
[1750778597104,66.40196506,144.73,144.66,10.95437469]
[1750778597303,10.95437469,144.71,144.67,10.95437469]
[1750778597501,10.95437469,144.71,144.67,17.86659632]
[1750778597685,77.35633975,144.73,144.68,0.14216157]
[1750778597885,10.95437469,144.71,144.68,0.14216157]
[1750778598080,10.95437469,144.72,144.68,0.14216157]
[1750778598496,10.95437469,144.71,144.68,0.14216157]
[1750778598892,10.95437469,144.72,144.68,11.09653626]
[1750778599102,6.5,144.73,144.7,11.09653626]
[1750778599305,6.5,144.73,144.71,10.95437469]
[1750778599513,6.5,144.73,144.7,11.09653626]
[1750778599713,6.5,144.73,144.7,18.00697595]
[1750778600091,6.5,144.73,144.7,7.05260126]
[1750778600294,6.5,144.73,144.71,18.64964886]
[1750778602906,43.8628458,144.75,144.71,18.64964886]
[1750778603309,26.0,144.75,144.72,0.14216157]
[1750778603511,43.86287366,144.75,144.72,0.14216157]
[1750778603814,26.0,144.75,144.73,18.64964886]
[1750778604789,26.0,144.75,144.72,0.14216157]
[1750778604993,26.0,144.75,144.73,18.64964886]
[1750778605406,36.95437469,144.75,144.73,18.64964886]
[1750778605699,26.0,144.75,144.74,0.14216157]
[1750778606007,36.95437469,144.75,144.74,25.70075059]
[1750778606517,10.95437469,144.8,144.75,18.79181043]
[1750778606518,10.95437469,144.76,144.75,18.79181043]
[1750778607223,10.95437469,144.76,144.75,0.14216157]
[1750778607994,10.95437469,144.76,144.69,0.69070144]
[1750778607995,10.95437469,144.76,144.66,1.605]
[1750778608195,10.95437469,144.7,144.67,18.64964886]
[1750778608397,10.95437469,144.7,144.67,25.56193198]
[1750778609090,6.5,144.75,144.67,25.56193198]
[1750778609091,6.5,144.75,144.68,0.14216157]
[1750778609294,6.5,144.75,144.67,36.51630667]
[1750778609510,10.95437469,144.73,144.68,10.95437469]
[1750778609717,10.95437469,144.73,144.69,0.14216157]
[1750778610423,10.95437469,144.72,144.69,0.14216157]
[1750778611405,10.95437469,144.72,144.71,18.79181043]
[1750778612015,10.95437469,144.73,144.71,18.79181043]
[1750778612698,10.95437469,144.74,144.71,18.79181043]
[1750778612898,6.5,144.75,144.71,18.79181043]
[1750778613130,17.45437469,144.75,144.71,18.79181043]
[1750778613597,17.45437469,144.75,144.73,0.14216157]
[1750778614017,10.95437469,144.74,144.73,0.14216157]
[1750778615033,6.5,144.75,144.73,18.79181043]
[1750778615034,17.45437469,144.75,144.73,18.79181043]
[1750778615235,6.5,144.75,144.73,18.79181043]
[1750778615408,10.95437469,144.76,144.73,18.79181043]
[1750778615729,10.95437469,144.75,144.74,25.55858902]
[1750778616299,10.95437469,144.76,144.74,25.55858902]
[1750778616601,10.95437469,144.77,144.75,18.79181043]
[1750778617315,36.95437469,144.77,144.75,18.79181043]
[1750778617715,10.95437469,144.79,144.77,18.79181043]
[1750778618318,6.5,144.8,144.77,18.79181043]
[1750778618534,10.95437469,144.78,144.77,18.79181043]
[1750778619625,10.95437469,144.79,144.78,6.90703135]
[1750778620128,6.5,144.8,144.78,6.90703135]
[1750778620434,6.90376397,144.85,144.79,18.79181043]
[1750778620734,6.90376397,144.85,144.78,6.90703135]
[1750778620735,26.0,144.82,144.78,6.90703135]
[1750778620941,10.95437469,144.81,144.79,18.79181043]
[1750778621932,10.95437469,144.81,144.79,7.0484888]
[1750778622115,10.95437469,144.8,144.77,18.64964886]
[1750778622434,10.95437469,144.79,144.78,18.79181043]
[1750778622640,6.90388229,144.85,144.78,18.79181043]
[1750778622814,10.95437469,144.81,144.78,18.79181043]
[1750778623706,10.95437469,144.8,144.78,18.79181043]
[1750778624118,10.95437469,144.79,144.78,25.6986816]
[1750778624318,10.95437469,144.79,144.78,18.79181043]
[1750778624709,10.95437469,144.79,144.74,18.79181043]
[1750778624903,10.95437469,144.75,144.74,18.64964886]
[1750778625316,10.95437469,144.76,144.75,0.14216157]
[1750778625733,10.95437469,144.76,144.74,18.64964886]
[1750778626157,10.95437469,144.76,144.75,25.70027329]
[1750778626326,10.95437469,144.76,144.75,25.55811172]
[1750778626531,10.95437469,144.77,144.75,25.70027329]
[1750778627763,6.0046,144.82,144.76,18.79181043]
[1750778627954,10.95437469,144.79,144.76,18.79181043]
[1750778628253,10.95437469,144.79,144.77,6.90750846]
[1750778629026,6.90562168,144.81,144.76,6.90782665]
[1750778629228,10.95437469,144.78,144.76,6.90782665]
[1750778629436,10.95437469,144.79,144.76,6.90782665]
[1750778629880,10.95437469,144.78,144.76,6.90782665]
[1750778630254,10.95437469,144.79,144.75,7.05062443]
[1750778631058,26.0,144.81,144.76,10.95437469]
[1750778631059,36.95437469,144.81,144.76,10.95437469]
[1750778631352,6.48,144.83,144.77,29.74618512]
[1750778631563,10.95437469,144.82,144.77,29.74618512]
[1750778632260,43.43437469,144.83,144.79,0.14216157]
[1750778633755,10.95437469,144.8,144.76,6.90798563]
[1750778633949,6.9051236,144.82,144.76,6.90798563]
[1750778633950,10.95437469,144.77,144.76,6.90798563]
[1750778634156,10.95437469,144.8,144.76,6.90798563]
[1750778634550,13.38475074,144.83,144.76,6.90798563]
[1750778634869,10.95437469,144.8,144.76,6.90798563]
[1750778635072,6.48,144.83,144.77,18.79181043]
[1750778635368,10.95437469,144.82,144.77,29.74618512]
[1750778635536,6.48,144.83,144.77,29.74618512]
[1750778635870,10.95437469,144.78,144.74,7.59947731]
[1750778636079,10.95437469,144.78,144.71,17.27573496]
[1750778636080,10.95437469,144.75,144.72,6.90989496]
[1750778636356,10.95437469,144.74,144.72,0.14216157]
[1750778636728,1.5101,144.81,144.74,18.79181043]
[1750778636937,10.95437469,144.79,144.74,29.74618512]
[1750778637461,10.95437469,144.79,144.74,18.79181043]
[1750778638147,6.90560412,144.81,144.74,18.79181043]
[1750778638354,10.95437469,144.78,144.75,6.90846286]
[1750778639154,10.95437469,144.76,144.71,18.64964886]
[1750778639360,10.95437469,144.75,144.71,0.14216157]
[1750778639544,10.95437469,144.76,144.73,0.14216157]
[1750778639746,10.95437469,144.75,144.73,0.14216157]
[1750778640462,10.95437469,144.75,144.74,6.90894016]
[1750778641038,10.95437469,144.76,144.74,6.90894016]
[1750778641555,10.95437469,144.78,144.74,6.90894016]
[1750778641933,159.91765475,144.82,144.74,6.90894016]
[1750778641934,10.95437469,144.77,144.74,6.90894016]
[1750778642352,10.95437469,144.77,144.74,24.18129058]
[1750778643068,146.6,144.82,144.76,35.13232439]
[1750778643374,146.6,144.82,144.77,0.14216157]
[1750778643375,10.95437469,144.82,144.77,0.14216157]
[1750778643672,17.43437469,144.83,144.78,10.95437469]
[1750778644646,6.48,144.83,144.79,10.95437469]
[1750778645051,17.43437469,144.83,144.8,6.90607734]
[1750778647158,10.95437469,144.81,144.79,6.90655432]
[1750778648456,10.95437469,144.8,144.76,7.0501472]
[1750778648663,10.95437469,144.79,144.76,7.0501472]
[1750778649065,10.95437469,144.77,144.72,49.49987627]
[1750778649256,10.95437469,144.76,144.73,17.27354384]
[1750778649456,10.95437469,144.78,144.74,0.14216157]
[1750778649658,10.95437469,144.77,144.74,0.14216157]
[1750778650571,13.55156482,144.82,144.72,6.90989496]
[1750778650572,10.95437469,144.75,144.72,6.90989496]
[1750778650867,10.95437469,144.76,144.73,0.14216157]
[1750778651078,10.95437469,144.77,144.73,0.14216157]
[1750778651372,10.95437469,144.77,144.74,6.90894016]
[1750778653069,10.95437469,144.77,144.73,7.0515791]
[1750778653583,26.0,144.73,144.68,6.91180536]
[1750778653759,10.95437469,144.69,144.68,6.91180536]
[1750778653952,10.95437469,144.7,144.68,6.91180536]
[1750778654352,10.95437469,144.69,144.68,6.91180536]
[1750778654658,10.95437469,144.69,144.67,7.05444469]
[1750778655064,10.95437469,144.7,144.67,6.91228312]
[1750778655475,10.95437469,144.71,144.68,0.14216157]
[1750778655651,10.95437469,144.7,144.68,0.14216157]
[1750778656757,10.95437469,144.7,144.69,6.91132766]
[1750778657389,10.95437469,144.7,144.67,6.91228312]
[1750778657679,10.95437469,144.68,144.67,6.91228312]
[1750778658382,10.95437469,144.69,144.67,24.19299093]
[1750778658684,10.95437469,144.68,144.67,24.19299093]
[1750778658877,10.95437469,144.68,144.66,0.14216157]
[1750778659267,26.0,144.73,144.65,24.19633598]
[1750778659268,10.95437469,144.67,144.65,24.19633598]
[1750778660467,10.95437469,144.66,144.65,24.33849755]
[1750778660870,10.95437469,144.67,144.65,24.33849755]
[1750778663485,10.95437469,144.69,144.65,24.33849755]
[1750778663870,17.43437469,144.7,144.66,0.14216157]
[1750778664080,17.43437469,144.7,144.66,18.79181043]
[1750778664268,17.43437469,144.7,144.66,29.74618512]
[1750778664789,6.48,144.7,144.66,29.74618512]
[1750778664970,6.48,144.7,144.69,6.91132766]
[1750778666989,6.48,144.7,144.68,7.05396693]
[1750778667298,6.48,144.7,144.68,6.91180536]
[1750778667480,17.43437469,144.7,144.68,6.91180536]
[1750778668195,36.95437469,144.73,144.69,0.14216157]
[1750778668396,36.95437469,144.73,144.69,18.79181043]
[1750778668397,26.0,144.73,144.69,18.79181043]
[1750778668697,36.95437469,144.73,144.69,18.79181043]
[1750778669103,36.95437469,144.73,144.7,24.18797511]
[1750778670081,10.95437469,144.74,144.7,24.18797511]
[1750778671005,17.43437469,144.75,144.71,29.74618512]
[1750778671301,17.43437469,144.75,144.72,24.18463238]
[1750778672004,6.48,144.75,144.72,24.18463238]
[1750778672986,10.95437469,144.78,144.74,10.95437469]
[1750778673186,10.95437469,144.78,144.75,24.17962002]
[1750778673597,10.95437469,144.77,144.75,24.17962002]
[1750778673904,10.95437469,144.76,144.75,6.90846286]
[1750778674074,10.95437469,144.76,144.71,0.14216157]
[1750778674277,10.95437469,144.74,144.71,0.14216157]
[1750778675095,10.95437469,144.74,144.72,6.90989496]
[1750778675481,10.95437469,144.75,144.72,6.90989496]
[1750778676097,10.95437469,144.74,144.72,6.90989496]
[1750778676298,6.56101226,144.74,144.72,6.90989496]
[1750778676483,32.90696521,144.79,144.72,6.90989496]
[1750778676685,6.56101226,144.73,144.72,6.90989496]
[1750778676881,1.6134,144.77,144.72,6.90989496]
[1750778677081,6.56101226,144.74,144.72,6.90989496]
[1750778677987,6.56101226,144.75,144.71,17.27587299]
[1750778678587,1.6134,144.77,144.71,17.27587299]
[1750778678782,6.56101226,144.74,144.71,17.27587299]
[1750778679307,6.56101226,144.72,144.7,6.91085003]
[1750778679603,6.56101226,144.71,144.7,6.91085003]
[1750778680000,6.56101226,144.71,144.68,24.19028101]
[1750778684220,6.56101226,144.7,144.68,6.91180536]
[1750778684597,6.56101226,144.69,144.68,6.91180536]
[1750778685201,6.56101226,144.69,144.66,6.91276095]
[1750778685516,6.56101226,144.67,144.62,6.91467293]
[1750778685688,26.0,144.69,144.63,0.14216157]
[1750778685689,6.56101226,144.66,144.63,0.14216157]
[1750778686019,6.48,144.68,144.63,18.79181043]
[1750778686313,6.48,144.68,144.66,6.91276095]
[1750778686805,6.56101226,144.69,144.66,24.19466334]
[1750778688816,6.56101226,144.7,144.66,30.7556756]
[1750778689120,6.56101226,144.71,144.67,0.14216157]
[1750778689415,6.48,144.72,144.67,25.35282269]
[1750778689606,6.56101226,144.7,144.67,0.14216157]
[1750778689822,6.0844,144.71,144.66,6.91276095]
[1750778689994,6.56101226,144.67,144.66,6.91276095]
[1750778690498,6.56101226,144.67,144.64,17.28411125]
[1750778692526,6.56101226,144.67,144.64,6.91371681]
[1750778692889,26.0,144.71,144.65,18.79181043]
[1750778693094,6.56101226,144.73,144.68,6.56101226]
[1750778693307,6.56101226,144.73,144.69,0.14216157]
[1750778693497,8.0786,144.74,144.7,6.56101226]
[1750778693498,6.48,144.74,144.7,6.56101226]
[1750778693805,13.04101226,144.74,144.7,6.56101226]
[1750778693999,6.48,144.74,144.71,0.14216157]
[1750778694513,6.48,144.74,144.72,6.90989496]
[1750778694720,6.56101226,144.73,144.72,6.90989496]
[1750778695520,6.56101226,144.73,144.7,6.91085003]
[1750778695722,6.56101226,144.71,144.7,6.91085003]
[1750778696511,32.56101226,144.71,144.67,7.05444469]
[1750778696715,6.56101226,144.69,144.67,6.91228312]
[1750778698114,6.56101226,144.69,144.66,17.28083995]
[1750778698508,6.56101226,144.7,144.66,17.28083995]
[1750778698819,6.56101226,144.69,144.66,17.28083995]
[1750778699025,6.56101226,144.7,144.66,17.28083995]
[1750778700326,6.56101226,144.7,144.66,24.1936009]
[1750778701127,26.0,144.71,144.67,6.70317383]
[1750778702725,26.0,144.71,144.68,24.19131876]
[1750778703407,32.56101226,144.71,144.68,24.19131876]
[1750778704225,32.56101226,144.71,144.68,6.91180536]
[1750778704526,32.56101226,144.71,144.66,6.91276095]
[1750778704527,6.56101226,144.69,144.66,6.91276095]
[1750778704708,6.56101226,144.68,144.66,6.91276095]
[1750778704913,6.56101226,144.69,144.66,24.19466334]
[1750778705415,6.56101226,144.68,144.66,6.91276095]
[1750778708221,32.56101226,144.69,144.66,6.91276095]
[1750778710131,6.56101226,144.69,144.66,24.19466334]
[1750778711611,32.56101226,144.71,144.66,30.7556756]
[1750778711813,26.0,144.71,144.67,6.56101226]
[1750778712318,32.56101226,144.71,144.67,6.56101226]
[1750778712725,32.56101226,144.71,144.66,24.19466334]
[1750778712726,6.56101226,144.73,144.68,6.70317383]
[1750778713027,153.08,144.74,144.7,0.14216157]
[1750778713028,13.04101226,144.74,144.7,0.14216157]
[1750778713334,13.04101226,144.74,144.71,6.91037246]
[1750778713721,6.56101226,144.72,144.69,6.91132766]
[1750778714034,6.56101226,144.7,144.69,6.91132766]
[1750778714236,6.56101226,144.71,144.69,6.91132766]
[1750778715433,6.56101226,144.7,144.67,6.91228312]
[1750778716522,13.38916408,144.74,144.67,6.91228312]
[1750778716523,6.56101226,144.71,144.67,24.19299093]
[1750778716728,6.56101226,144.71,144.67,30.75400319]
[1750778717033,6.56101226,144.71,144.67,24.19299093]
[1750778719219,6.56101226,144.73,144.68,6.70317383]
[1750778721938,6.48,144.74,144.69,24.18964682]
[1750778722115,6.56101226,144.73,144.69,24.18964682]
[1750778726245,6.48,144.74,144.69,24.18964682]
[1750778726442,6.56101226,144.71,144.69,6.91132766]
[1750778726744,6.56101226,144.71,144.67,6.91228312]
[1750778726946,6.56101226,144.7,144.67,6.91228312]
[1750778727140,26.0,144.69,144.65,6.91323885]
[1750778727335,6.56101226,144.68,144.65,6.91323885]
[1750778727849,6.56101226,144.67,144.63,6.91419484]
[1750778728052,6.56101226,144.64,144.6,1.5571]
[1750778728222,6.56101226,144.64,144.56,37.9612044]
[1750778728223,6.56101226,144.61,144.57,8.47416439]
[1750778728423,6.56101226,144.6,144.57,8.47416439]
[1750778728747,6.56101226,144.61,144.57,8.47416439]
[1750778728923,26.0,144.62,144.58,6.56101226]
[1750778729126,153.06,144.67,144.57,8.61632596]
[1750778729127,32.56101226,144.64,144.59,6.70317383]
[1750778729445,32.56101226,144.64,144.6,6.91562932]
[1750778729644,6.56101226,144.62,144.6,6.91562932]
[1750778729848,6.56101226,144.61,144.58,6.91658597]
[1750778731043,6.56101226,144.61,144.57,24.20972538]
[1750778731423,6.56101226,144.6,144.57,24.20972538]
[1750778731754,6.91374059,144.64,144.57,24.20972538]
[1750778731923,6.56101226,144.6,144.57,24.20972538]
[1750778733045,6.56101226,144.62,144.57,30.77073764]
[1750778733224,6.91276095,144.66,144.57,30.77073764]
[1750778733225,6.56101226,144.61,144.57,30.77073764]
[1750778733425,6.56101226,144.61,144.57,24.20972538]
[1750778734547,6.56101226,144.61,144.57,6.91706439]
[1750778734736,6.56101226,144.59,144.57,6.91706439]
[1750778734967,6.56101226,144.58,144.55,6.91802144]
[1750778735343,6.56101226,144.58,144.52,44.64964886]